Cogmind - Beta 15 @@@ ROGUE MODE // 2025.05.18 @ 22:53:19 Player: Occam Result: Destroyed by PS-XP3(R) with Subdweller Machine Gun Performance ------------- Evolutions (0) 0 Regions Visited (2) 400 Robots Destroyed (28) 140 Value Destroyed (604) 604 Prototype IDs (1) 20 Alien Tech Used (0) 0 Bonus (0) 0 TOTAL SCORE: 1164 Bonus ------- None Cogmind --------- Core Integrity 0/250 Matter 251/300 Energy 96/100 System Corruption 0% Temperature Cool (0) Movement Core (450) Ox8 Location -10/Subcaves Parts ------- > --- POWER (1) -------- (None) > --- PROPULSION (2) --- (None) > --- UTILITY (2) ------ Large Storage Unit Targeting Computer > --- WEAPON (2) ------- Improved Assault Rifle Improved Assault Rifle > --- INVENTORY (15) --- Ion Engine Compact Wheel Compact Wheel Structural Scanner Structural Scanner Signal Interpreter Terrain Scanner Terrain Scan Processor Medium Laser Improved Assault Rifle Rocket Launcher Rocket Launcher Mining Laser Peak State ------------ > --- POWER ------------ Ion Engine > --- PROPULSION ------- Compact Wheel Subdweller Monowheel > --- UTILITY ---------- Large Storage Unit Structural Scanner > --- WEAPON ----------- Improved Assault Rifle Improved Assault Rifle > --- INVENTORY -------- Ion Engine Compact Wheel Compact Wheel Structural Scanner Signal Interpreter Terrain Scanner Terrain Scan Processor Seismic Detector Targeting Computer Medium Laser Improved Assault Rifle Improved Assault Rifle Rocket Launcher Rocket Launcher Mining Laser [Rating: 14] Favorites ----------- Power Ion Engine Engine Ion Engine Power Core Light Nuclear Core Propulsion Light Treads Treads Light Treads Leg Aluminum Leg Wheel Compact Wheel Utility Large Storage Unit Device Structural Scanner Storage Large Storage Unit Processor Targeting Computer Weapon Particle Gun Energy Gun Particle Gun Ballistic Gun Improved Assault Rifle Special Weapon Mining Laser Build | -11 -10 -10 ------- Run | Yrd Mat Sub Slots Evolved . | . . . Power . | . . . Propulsion . | . . . Utility . | . . . Weapon . | . . . Parts Attached 24 | 1 19 4 Power 4 | . 4 . Engine 3 | . 3 . Core 1 | . 1 . Reactor . | . . . Propulsion 4 | . 3 1 Treads 2 | . 2 . Leg . | . . . Wheel 2 | . 1 1 Hover . | . . . Flight . | . . . Utility 8 | 1 5 2 Device 5 | 1 3 1 Storage 2 | . 2 . Processor 1 | . . 1 Hackware . | . . . Protection . | . . . Artifact . | . . . Weapon 8 | . 7 1 Energy Gun 3 | . 3 . Energy Cannon . | . . . Ballistic Gun 4 | . 3 1 Ballistic Cannon . | . . . Launcher . | . . . Special Weapon 1 | . 1 . Impact Weapon . | . . . Slashing Weapon . | . . . Piercing Weapon . | . . . Special Melee Weapon . | . . . Unidentified Prototypes 1 | . 1 . Parts Lost 10 | . 5 5 Power 3 | . 2 1 Propulsion 3 | . 1 2 Utility 1 | . . 1 Weapon 3 | . 2 1 Highest Loss Streak 5 | . 2 5 To Critical Strikes . | . . . Average Backups 11 | 5 11 14 Power . | 1 . 1 Propulsion 2 | 3 2 2 Utility 4 | . 4 5 Weapon 3 | 1 3 5 Tool/Special . | . . . Unused Backups 18 | . 9 9 Power 1 | . . 1 Propulsion 5 | . 4 1 Utility 7 | . 3 4 Weapon 5 | . 2 3 Tool/Special . | . . . Average Slot Usage (%) 99 | . 99 96 Engine 13 | . 13 12 Treads 18 | . 19 8 Wheel 8 | . 7 18 Device 13 | . 14 12 Storage 14 | . 14 14 Energy Gun 19 | . 21 . Ballistic Gun 7 | . 5 28 Peak Build Rating 14 | 7 13 14 Average Rating 9 | 6 9 12 On Entrance 8 | 6 7 11 Naked Turns . | . . . Heaviest Build 32 | 13 32 32 Greatest Support 40 | 20 40 36 Greatest Overweight (x) 1 | . 1 1 Average Overweight (x) . | . . . Largest Inventory Capacity 15 | 8 15 15 Average Capacity 13 | 8 13 15 Most Carried 15 | 6 15 15 Average Carried 11 | 5 11 14 Final Capacity 15 | 8 15 15 Final Carried 15 | 6 15 13 Class Distribution -------------------- 71% | Mutant 28% | Scavenger-Mutant Dominant Class ---------------- Mutant | -10/Materials Mutant | -10/Subcaves Resources | -11 -10 -10 ----------- Run | Yrd Mat Sub Matter Collected 508 | 218 248 42 Remotely . | . . . Salvage Created 784 | 98 566 120 Parts 65 | 4 49 12 Haulers Intercepted . | . . . Recyclers Shooed 1 | 1 . . Parts Field Recycled . | . . . Retrieved Matter . | . . . Parts Self-Destructed 1 | . . 1 Prevented . | . . . Kills | -11 -10 -10 ------- Run | Yrd Mat Sub Combat Hostiles Destroyed 18 | . 15 3 Guns 17 | . 14 3 Classes Destroyed 9 | 2 6 1 Builder 3 | . 3 . Tunneler 1 | 1 . . Recycler 1 | 1 . . Mechanic 1 | . 1 . Operator 1 | . 1 . Watcher 3 | . 3 . Swarmer 6 | . 6 . Grunt 9 | . 9 . Subdweller 3 | . . 3 Best Kill Streak 4 | 1 4 2 Combat Bots Only 3 | . 3 2 Max Kills in Single Turn 1 | 1 1 1 Gunslinging . | . . . Exploded . | . . . Melee . | . . . Uniques/NPCs Destroyed . | . . . Combat | -11 -10 -10 -------- Run | Yrd Mat Sub Hostile Shots Fired 122 | . 86 36 Missed 23 | . 20 3 Hits 99 | . 66 33 Projectile 99 | . 66 33 Critical Strikes 1 | . . 1 Damage Taken 1455 | . 750 705 Core 250 | . 146 104 Absorbed by Shields . | . . . Core Remaining (%) 100 | 100 . . Volleys Fired 102 | 8 83 11 Largest 2 | 2 2 2 Hottest 150 | 60 150 46 Shots Fired 192 | 16 154 22 Gun 179 | 16 141 22 Cannon . | . . . Launcher . | . . . Special 13 | . 13 . Kinetic 43 | 8 13 22 Thermal 149 | 8 141 . Explosive . | . . . Electromagnetic . | . . . Robot Hit Streak 11 | 6 8 11 Robot Miss Streak 4 | 3 4 1 Penetration Max . | . . . Secondary Targets 1 | . 1 . Max Gunslinging Chain 1 | . 1 . Shots Hit Robots 111 | 9 82 20 Core Hits 44 | 3 34 7 Critical Kills . | . . . Critical Parts Destroyed . | . . . Critical Strikes 2 | . 2 . Burn 2 | . 2 . Melee Attacks . | . . . Impact . | . . . Slashing . | . . . Piercing . | . . . Sneak Attacks . | . . . Combat Hostiles . | . . . Follow-up Attacks . | . . . Damage Inflicted 1391 | 92 1053 246 Guns 1367 | 92 1029 246 Cannons . | . . . Explosions . | . . . Melee . | . . . Ramming . | . . . Kinetic 326 | 25 55 246 Thermal 1065 | 67 998 . Explosive . | . . . Electromagnetic . | . . . Impact . | . . . Slashing . | . . . Piercing . | . . . Highest Corruption . | . . . Average Corruption . | . . . Corruption Purged . | . . . Corruption Blocked . | . . . Overload Shots . | . . . Overflow Damage 4 | . 4 . Projectiles 4 | . 4 . Explosions . | . . . Melee . | . . . Knockbacks . | . . . Impact . | . . . Kinetic . | . . . Secondary . | . . . Self-Inflicted Damage . | . . . Shots . | . . . Rammed . | . . . Targets Rammed . | . . . Kicked . | . . . Crushed . | . . . Highest Temperature 403 | 40 403 . Average Temperature 107 | 22 112 . Received Heat Transfer 357 | . 303 54 Effects 2 | . 2 . Shutdowns 2 | . 2 . Siege Activations . | . . . Martial Activations . | . . . Shielding Activations . | . . . Robots Disrupted . | . . . Combat Hostiles . | . . . Robots Corrupted . | . . . Combat Hostiles . | . . . Parts Fried . | . . . Impact Corruptions . | . . . Robots Melted 1 | . 1 . Combat Hostiles 1 | . 1 . Parts Melted 2 | . 2 . Heat Transferred 2667 | 150 2517 . Parts Sabotaged . | . . . Parts Stolen . | . . . Parts Stripped . | . . . Power Chain Reactions . | . . . Alert | -11 -10 -10 ------- Run | Yrd Mat Sub Maximum Alert Level . | . . . Low Security (%) 100 | 100 100 . Level 1 . | . . . Level 2 . | . . . Level 3 . | . . . Level 4 . | . . . Level 5 . | . . . High Security . | . . . Max Security . | . . . Peak Influence 72 | 5 72 . Initial . | . . . Average 18 | 1 19 . Influence Increases 440 | 10 430 . Destroy 0b10 Robot/C 300 | . 300 . Destroy 0b10 Robot/NC 50 | 10 40 . Destroy Leader 56 | . 56 . Successful Hack 10 | . 10 . Destroy Structure 9 | . 9 . Lose Combat Pursuer 15 | . 15 . Influence Decreases 440 | 10 416 14 Entered New Map 7 | . . 7 Time Decay 383 | 10 366 7 Lost Part 50 | . 50 . Squads Dispatched 2 | . 2 . Investigation 1 | . 1 . Extermination . | . . . Reinforcement 1 | . 1 . Assault . | . . . Garrison . | . . . Intercept . | . . . Searches Triggered . | . . . Construction Impeded . | . . . Haulers Reinforced . | . . . Active Scanning Responses . | . . . Cargo Convoy Interrupts . | . . . Stealth | -11 -10 -10 --------- Run | Yrd Mat Sub Distress Signals 1 | . 1 . Communications Jammed . | . . . Distress Signals . | . . . Times Spotted 26 | . 21 5 Peak Tracking Total 3 | . 3 3 Tactical Retreats 1 | . 1 . Traps | -11 -10 -10 ------- Run | Yrd Mat Sub Traps Triggered 4 | . 4 . Indirectly . | . . . Trap Hack Attempts . | . . . Triggered . | . . . Disarmed . | . . . Reprogrammed . | . . . Reused . | . . . Traps Extracted . | . . . Installed . | . . . Triggered . | . . . Machines | -11 -10 -10 ---------- Run | Yrd Mat Sub Machines Disabled . | . . . Max in Single Turn . | . . . Machines Repaired . | . . . Machines Dismantled . | . . . Machines Sabotaged . | . . . Overloaded Fab Kills . | . . . Hacking | -11 -10 -10 --------- Run | Yrd Mat Sub Machines Accessed 6 | . 6 . Terminals 6 | . 6 . Fabricators . | . . . Repair Stations . | . . . Recycling Units . | . . . Scanalyzers . | . . . Garrison Access . | . . . Total Hacks 14 | . 14 . Successful 5 | . 5 . Failed 9 | . 9 . Catastrophic 1 | . 1 . Database Lockouts . | . . . Manual 8 | . 8 . Terminals 14 | . 14 . Fabricators . | . . . Repair Stations . | . . . Recycling Units . | . . . Scanalyzers . | . . . Garrison Access . | . . . Terminal Hacks 3 | . 3 . Terminal Index 1 | . 1 . Locate Traps 2 | . 2 . Fabricator Hacks . | . . . Repair Station Hacks . | . . . Recycling Unit Hacks . | . . . Scanalyzer . | . . . Garrison Access Hacks . | . . . Unauthorized Hacks 2 | . 2 . Terminals 2 | . 2 . Botnet 2 | . 2 . Fabricators . | . . . Repair Stations . | . . . Recycling Units . | . . . Scanalyzers . | . . . Garrison Access . | . . . Data Cores Recovered . | . . . Used . | . . . Hacking Detections 6 | . 6 . Full Trace Events 2 | . 2 . Feedback Events . | . . . Feedback Blocked . | . . . Robot Schematics Acquired . | . . . Robots Built . | . . . Authchips . | . . . Time . | . . . Total Robot Build Rating . | . . . Part Schematics Acquired . | . . . Parts Built . | . . . Authchips . | . . . Time . | . . . Total Part Build Rating . | . . . Parts Repaired . | . . . Time . | . . . Parts Recycled . | . . . Recycled Matter . | . . . Retrieved Matter . | . . . Retrieved Components . | . . . Parts Scanalyzed . | . . . Part Schematics Acquired . | . . . Parts Damaged . | . . . Bothacking | -11 -10 -10 ------------ Run | Yrd Mat Sub Used RIF Installer . | . . . Robots Hacked . | . . . Non-combat . | . . . Combat . | . . . Robot Hacks Applied . | . . . Relay Couplers Released . | . . . Fabnet Peak Effective % . | . . . Robots Rewired . | . . . Allies Hacked . | . . . Hacks Repelled . | . . . Allies | -11 -10 -10 -------- Run | Yrd Mat Sub Total Allies . | . . . Largest Group . | . . . Highest-Rated Group . | . . . Highest-Rated Ally . | . . . Total Orders . | . . . Ally Attacks . | . . . Total Damage . | . . . Kills . | . . . Allies Corrupted . | . . . Allies Melted . | . . . Intel | -11 -10 -10 ------- Run | Yrd Mat Sub Active Infowar (turns) 1106 | 16 949 141 Structural 860 | . 768 92 Seismic 246 | 16 181 49 Robot Analysis Total . | . . . Derelict Logs Recovered . | . . . Drone Launches . | . . . Drone Recoveries . | . . . Exploration | -11 -10 -10 ------------- Run | Yrd Mat Sub Turns Passed 1451 | 62 1232 157 Spaces Moved 740 | 27 642 71 Core . | . . . Treads 203 | . 203 . Legs 52 | 27 25 . Wheels 485 | . 414 71 Hover . | . . . Flight . | . . . Fastest Speed 105 | 120 115 105 Average Speed 127 | 120 129 109 Slowest Speed 240 | 120 240 115 Overloaded Moves . | . . . Propulsion Burnouts . | . . . Robots Hopped . | . . . Potential Cave-ins . | . . . Cave-ins Triggered . | . . . Exploration Rate (%) 35 | 3 97 5 Regions Visited 2 Branch Regions 1 Pre-discovered Areas . | . . . Known Exits Taken . | . . . Unknown Exits Taken 2 | 1 1 . Scrap Searched . | . . . Spaces Dug 5 | . 5 . Terrain Destroyed 8 | . 8 . Melee . | . . . Projectile 8 | . 8 . AOE . | . . . Terrain Rammed . | . . . Walls Destroyed . | . . . Machines Disabled . | . . . Actions | -11 -10 -10 --------- Run | Yrd Mat Sub Total 1040 | 42 868 130 Wait 125 | 5 78 42 Move 738 | 26 641 71 Hop . | . . . Pick Up 22 | 1 21 . Fast Attach 10 | 1 8 1 Attach 6 | . 4 2 Detach 4 | . 4 . Swap 15 | . 13 2 Drop 18 | 1 16 1 Fire 102 | 8 83 11 Melee . | . . . Ram . | . . . Kick . | . . . Crush . | . . . Escape Stasis . | . . . Rewire . | . . . Trap . | . . . Miscellaneous . | . . . Route ------- -11/Scrapyard -10/Materials (discovered 6 exits: [*Mat x3] / [*Min x2] / [*Sub]) -10/Subcaves History --------- Turn | Location | Event 1 | -11/Scrapyard | Discovered new exit (range 3) 63 | -11/Scrapyard | Entered Materials 176 | -10/Materials | Discovered new exit (range 14) 246 | -10/Materials | Discovered new exit (range 12) 300 | -10/Materials | Build established: Mutant 353 | -10/Materials | Discovered new exit (range 4) 377 | -10/Materials | Discovered new exit (range 10) 764 | -10/Materials | Core integrity fell below 50% 900 | -10/Materials | Build established: Scavenger-Mutant 1019 | -10/Materials | Discovered new exit (range 10) 1154 | -10/Materials | Discovered new exit (range 3) 1295 | -10/Materials | Entered Subcaves 1296 | -10/Subcaves | Approached by a straggling Scientist 1335 | -10/Subcaves | Build established: Mutant 1426 | -10/Subcaves | A Subdweller sparked back to life 1426 | -10/Subcaves | A Subdweller sparked back to life 1426 | -10/Subcaves | A Subdweller sparked back to life 1443 | -10/Subcaves | Core integrity fell below 20% 1452 | -10/Subcaves | Destroyed by PS-XP3(R) with Subdweller Machine Gun Last Messages --------------- 01379_ Y4-P9V(R) destroyed. 01382_ Acquired 12 matter. 01383_ Subatomizers dissect the Sub. Monowheel. 01384_ Dropped Lgt. Treads. 01385_ Acquired Sub. Monowheel. 01386_ Acquired 10 matter. 0L-2BW(c): "I think it's somewhere north of here" 01426_ W7-K58(R) creaks and sparks as it begins to move. 01426_ 6U-O29(R) creaks and sparks as it begins to move. 01426_ PS-XP3(R) creaks and sparks as it begins to move. 01430_ Ion Engine destroyed. 01432_ W7-K58(R) affixes Scrap Shield Fragment to Scrap Shield. 01435_ Sub. Monowheel destroyed. 01436_ Seismic Detector destroyed. 01441_ W7-K58(R) affixes Scrap Shield Fragment to Scrap Shield. 01446_ Imp. Assault Rifle destroyed. 0L-2BW(c): "I think it's somewhere north of here" 01449_ W7-K58(R) destroyed. 01450_ Com. Wheel destroyed. [Achievement: I Was Wrong!] Map ----- +----------------------------------------------------+ | ?????????????????????????????????????????????????? | | ?????????????????????????????????????????????????? | | ?????????????????????????????????????????????????? | | ?????????????????????????????????????????????????? | | ?????????????????????????????????????????????????? | | ?????????????????????????????????????????????????? | | ?????????????????????????????????????????????????? | | ?????????????????????????????????????????????????? | | ?????????????????????????????????????????????????? | | ?????????????????????????????????????????????????? | | ?????????????????????????????????????????????????? | | ?????????????????????????????????????????????????? | | ?????????????????????????????????????????????????? | | ?????????????????????????????????????????????????? | | ?????????????????????????????????????????????????? | | ?????????????????????????????????????????????????? | | ?????????????????????????????????????????????????? | | ?????????????????????????????????????????????????? | | ##????????????####?####??????????????????????????? | | ######??????### ### ##?????????????????????????? | | ############# #??????????? #????????????? | | &#%&## # # #????????? ?????????????? | | & %&& ##???????? ???????????????? | | !*#### # # ## ########?? #????????????????? | | =!##### # ## ##### ## ##????????????????? | | ### ### # #@ #????????????????? | | ## ## R #????????????????? | | ######### c [*R #?????????? | | ##???????### # < /%< #??????????? | | = ###?????????#### # !